Workbook

Sheet VSVDB Payload Calculator
L2: Color Space: | M2: DCI-P3
B4: =DEC2HEX(_xlfn.BITLSHIFT(BIN2DEC(B7),5)+_xlfn.BITLSHIFT(BIN2DEC(C7),2)+_xlfn.BITLSHIFT(BIN2DEC(D7),1)+BIN2DEC(E7)) -> 49 | F4: =DEC2HEX(_xlfn.BITLSHIFT(BIN2DEC(F7),3)+_xlfn.BITLSHIFT(BIN2DEC(G7),2)+BIN2DEC(H7),2) -> 23 | I4: =DEC2HEX(_xlfn.BITLSHIFT(BIN2DEC(I7),3)+_xlfn.BITLSHIFT(BIN2DEC(J7),1)+BIN2DEC(K7),2) -> 68 | L4: =BIN2HEX(_xlfn.CONCAT(L7,M7),2) -> 87 | N4: =BIN2HEX(_xlfn.CONCAT(N7,O7),2) -> 60 | P4: =BIN2HEX(_xlfn.CONCAT(P7,Q7),2) -> 76 | R4: =BIN2HEX(_xlfn.CONCAT(R7,S7),2) -> 8F
B5: Version | C5: DM Version | D5: Backlight Ctrl | E5: YUV 12-bit | F5: Min Lum Nits | G5: Global Dimming | H5: Backlight Min Lum | I5: Max Lum Nits | J5: Reserved | K5: DV Mode | L5: Gx[6:0] | M5: 12b 444[1] | N5: Gy[6:0] | O5: 10b 444[0] | P5: Rx[4:0] | Q5: Bx[2:0] | R5: Ry[4:0] | S5: By[2:0]
B6: 2 | C6: 3.x | D6: Not Supported | E6: Supported | F6: 0.019 | G6: Not Supported | H6: Disabled | I6: 696 | J6: 0 | K6: LLDV | L6: =INDEX(AD24:AD27,MATCH(M2,AA24:AA27,0)) -> 0.265 | M6: Supported | N6: =INDEX(AE24:AE27,MATCH($M$2,$AA$24:$AA$27,0)) -> 0.69 | O6: Not Supported | P6: =INDEX(AB24:AB27,MATCH($M$2,$AA$24:$AA$27,0)) -> 0.68 | Q6: =INDEX(AF24:AF27,MATCH($M$2,$AA$24:$AA$27,0)) -> 0.15 | R6: =INDEX(AC24:AC27,MATCH($M$2,$AA$24:$AA$27,0)) -> 0.32 | S6: =INDEX(AG24:AG27,MATCH($M$2,$AA$24:$AA$27,0)) -> 0.06
B7: 010 | C7: 010 | D7: =IF(EXACT(D6,"Supported"),1,0) -> 0 | E7: =IF(EXACT(E6,"Supported"),1,0) -> 1 | F7: =DEC2BIN(VLOOKUP(F6,X11:Y40,2),5) -> 00100 | G7: =IF(EXACT(G6,"Supported"),1,0) -> 0 | H7: =IF(EXACT(D6,"Not Supported"),"11",INDEX(AB11:AB14,MATCH(H6,AA11:AA14,0))) -> 11 | I7: =DEC2BIN(VLOOKUP(I6,V11:W40,2),5) -> 01101 | J7: 0 | K7: =VLOOKUP(K6,AA18:AB21,2) -> 00 | L7: =DEC2BIN(L6/( 0.49609375/127),7) -> 1000011 | M7: =IF(AND(EXACT(M6,"Supported"),EXACT(O6,"Not Supported")),1,0) -> 1 | N7: =DEC2BIN((N6-0.5)/((0.99609375-0.5)/127),7) -> 0110000 | O7: =IF(AND(EXACT(O6,"Supported"),EXACT(M6,"Not Supported")),1,0) -> 0 | P7: =DEC2BIN((P6-0.625)/((0.74609375-0.625)/31),5) -> 01110 | Q7: =DEC2BIN((Q6-0.125)/((0.15234375-0.125)/7),3) -> 110 | R7: =DEC2BIN((R6-0.25)/((0.37109375-0.25)/31),5) -> 10001 | S7: =DEC2BIN((S6-0.03125)/((0.05859375-0.03125)/7),3) -> 111
B9: Dolby VSVDB (V2) Payload | F9: =_xlfn.CONCAT(B4:S4) -> 4923688760768F
U10: MaxL nits | V10: MaxL nits (int) | W10: MaxL (dec) | X10: MinL nits | Y10: MinL (dec) | AA10: Backlight | AB10: Value
U11: =PQ2nits((2055+65*W11)/(2055+31*65)) -> 96.89294744 | V11: =INT(U11) -> 96 | W11: 0 | X11: =ROUND(PQ2nits((20*$W11)/(2055+31*65)),3) -> 0 | Y11: 0 | AA11: 25 nits | AB11: 00
U12: =PQ2nits((2055+65*W12)/(2055+31*65)) -> 113.5484927 | V12: 113 | W12: 1 | X12: =ROUND(PQ2nits((20*$W12)/(2055+31*65)),3) -> 0.001 | Y12: 1 | AA12: 50 nits | AB12: 01
U13: =PQ2nits((2055+65*W13)/(2055+31*65)) -> 132.855378 | V13: 132 | W13: 2 | X13: =ROUND(PQ2nits((20*$W13)/(2055+31*65)),3) -> 0.002 | Y13: 2 | AA13: 75 nits | AB13: 10
U14: =PQ2nits((2055+65*W14)/(2055+31*65)) -> 155.2199446 | V14: 155 | W14: 3 | X14: =ROUND(PQ2nits((20*$W14)/(2055+31*65)),3) -> 0.005 | Y14: 3 | AA14: 100 nits | AB14: 11
U15: =PQ2nits((2055+65*W15)/(2055+31*65)) -> 181.1107981 | V15: 181 | W15: 4 | X15: =ROUND(PQ2nits((20*$W15)/(2055+31*65)),3) -> 0.008 | Y15: 4 | AA15: Disabled | AB15: 11
U16: =PQ2nits((2055+65*W16)/(2055+31*65)) -> 285.7786713 | V16: 285 | W16: 7 | X16: =ROUND(PQ2nits((20*$W16)/(2055+31*65)),3) -> 0.026 | Y16: 7
U17: =PQ2nits((2055+65*W17)/(2055+31*65)) -> 332.0852676 | V17: 332 | W17: 8 | X17: =ROUND(PQ2nits((20*$W17)/(2055+31*65)),3) -> 0.035 | Y17: 8 | AA17: Mode | AB17: Value
U18: =PQ2nits((2055+65*W18)/(2055+31*65)) -> 385.6012776 | V18: 385 | W18: 9 | X18: =ROUND(PQ2nits((20*$W18)/(2055+31*65)),3) -> 0.046 | Y18: 9 | AA18: LLDV | AB18: 00
U19: =PQ2nits((2055+65*W19)/(2055+31*65)) -> 447.4424315 | V19: 447 | W19: 10 | X19: =ROUND(PQ2nits((20*$W19)/(2055+31*65)),3) -> 0.058 | Y19: 10 | AA19: LLDV + LLDV-HDMI | AB19: 01
U20: =PQ2nits((2055+65*W20)/(2055+31*65)) -> 518.9012004 | V20: 518 | W20: 11 | X20: =ROUND(PQ2nits((20*$W20)/(2055+31*65)),3) -> 0.072 | Y20: 11 | AA20: Std + LLDV | AB20: 10
U21: =PQ2nits((2055+65*W21)/(2055+31*65)) -> 601.4760381 | V21: 601 | W21: 12 | X21: =ROUND(PQ2nits((20*$W21)/(2055+31*65)),3) -> 0.088 | Y21: 12 | AA21: Std + LLDV + LLDV-HDMI | AB21: 11
U22: =PQ2nits((2055+65*W22)/(2055+31*65)) -> 696.9057369 | V22: 696 | W22: 13 | X22: =ROUND(PQ2nits((20*$W22)/(2055+31*65)),3) -> 0.106 | Y22: 13
U23: =PQ2nits((2055+65*W23)/(2055+31*65)) -> 807.2098477 | V23: 807 | W23: 14 | X23: =ROUND(PQ2nits((20*$W23)/(2055+31*65)),3) -> 0.127 | Y23: 14 | AA23: Color Space | AB23: Rx | AC23: Ry | AD23: Gx | AE23: Gy | AF23: Bx | AG23: By | AH23: Source
U24: =PQ2nits((2055+65*W24)/(2055+31*65)) -> 934.7363058 | V24: 934 | W24: 15 | X24: =ROUND(PQ2nits((20*$W24)/(2055+31*65)),3) -> 0.15 | Y24: 15 | AA24: BT709 | AB24: 0.64 | AC24: 0.33 | AD24: 0.3 | AE24: 0.6 | AF24: 0.15 | AG24: 0.06 | AH24: https://en.wikipedia.org/wiki/Rec._709
U25: =PQ2nits((2055+65*W25)/(2055+31*65)) -> 1082.21763 | V25: 1082 | W25: 16 | X25: =ROUND(PQ2nits((20*$W25)/(2055+31*65)),3) -> 0.176 | Y25: 16 | AA25: BT2020 | AB25: 0.708 | AC25: 0.292 | AD25: 0.17 | AE25: 0.797 | AF25: 0.131 | AG25: 0.046 | AH25: https://en.wikipedia.org/wiki/Rec._2020
U26: =PQ2nits((2055+65*W26)/(2055+31*65)) -> 1252.837342 | V26: 1252 | W26: 17 | X26: =ROUND(PQ2nits((20*$W26)/(2055+31*65)),3) -> 0.204 | Y26: 17 | AA26: DCI-P3 | AB26: 0.68 | AC26: 0.32 | AD26: 0.265 | AE26: 0.69 | AF26: 0.15 | AG26: 0.06 | AH26: https://en.wikipedia.org/wiki/DCI-P3
U27: =PQ2nits((2055+65*W27)/(2055+31*65)) -> 1450.308591 | V27: 1450 | W27: 18 | X27: =ROUND(PQ2nits((20*$W27)/(2055+31*65)),3) -> 0.236 | Y27: 18 | AA27: LS12000 Native | AB27: 0.667 | AC27: 0.331 | AD27: 0.314 | AE27: 0.672 | AF27: 0.148 | AG27: 0.042
U28: =PQ2nits((2055+65*W28)/(2055+31*65)) -> 1678.967383 | V28: 1678 | W28: 19 | X28: =ROUND(PQ2nits((20*$W28)/(2055+31*65)),3) -> 0.271 | Y28: 19 | AA28: m0j0 | AB28: 0.667 | AC28: 0.331 | AD28: 0.265 | AE28: 0.69 | AF28: 0.148 | AG28: 0.06
U29: =PQ2nits((2055+65*W29)/(2055+31*65)) -> 1943.883308 | V29: 1943 | W29: 20 | X29: =ROUND(PQ2nits((20*$W29)/(2055+31*65)),3) -> 0.31 | Y29: 20
U30: =PQ2nits((2055+65*W30)/(2055+31*65)) -> 2250.991296 | V30: 2250 | W30: 21 | X30: =ROUND(PQ2nits((20*$W30)/(2055+31*65)),3) -> 0.353 | Y30: 21
U31: =PQ2nits((2055+65*W31)/(2055+31*65)) -> 2607.248669 | V31: 2607 | W31: 22 | X31: =ROUND(PQ2nits((20*$W31)/(2055+31*65)),3) -> 0.399 | Y31: 22
U32: =PQ2nits((2055+65*W32)/(2055+31*65)) -> 3020.822711 | V32: 3020 | W32: 23 | X32: =ROUND(PQ2nits((20*$W32)/(2055+31*65)),3) -> 0.45 | Y32: 23
U33: =PQ2nits((2055+65*W33)/(2055+31*65)) -> 3501.315105 | V33: 3501 | W33: 24 | X33: =ROUND(PQ2nits((20*$W33)/(2055+31*65)),3) -> 0.506 | Y33: 24
U34: =PQ2nits((2055+65*W34)/(2055+31*65)) -> 4060.031048 | V34: 4060 | W34: 25 | X34: =ROUND(PQ2nits((20*$W34)/(2055+31*65)),3) -> 0.566 | Y34: 25
U35: =PQ2nits((2055+65*W35)/(2055+31*65)) -> 4710.302591 | V35: 4710 | W35: 26 | X35: =ROUND(PQ2nits((20*$W35)/(2055+31*65)),3) -> 0.631 | Y35: 26
U36: =PQ2nits((2055+65*W36)/(2055+31*65)) -> 5467.877966 | V36: 5467 | W36: 27 | X36: =ROUND(PQ2nits((20*$W36)/(2055+31*65)),3) -> 0.702 | Y36: 27
U37: =PQ2nits((2055+65*W37)/(2055+31*65)) -> 6351.391429 | V37: 6351 | W37: 28 | X37: =ROUND(PQ2nits((20*$W37)/(2055+31*65)),3) -> 0.779 | Y37: 28
U38: =PQ2nits((2055+65*W38)/(2055+31*65)) -> 7382.931543 | V38: 7382 | W38: 29 | X38: =ROUND(PQ2nits((20*$W38)/(2055+31*65)),3) -> 0.862 | Y38: 29
U39: =PQ2nits((2055+65*W39)/(2055+31*65)) -> 8588.730191 | V39: 8588 | W39: 30 | X39: =ROUND(PQ2nits((20*$W39)/(2055+31*65)),3) -> 0.951 | Y39: 30
U40: =PQ2nits((2055+65*W40)/(2055+31*65)) -> 10000 | V40: 10000 | W40: 31 | X40: =ROUND(PQ2nits((20*$W40)/(2055+31*65)),3) -> 1.048 | Y40: 31
B43: Based on Excels from: https://github.com/xnappo/ez_dv_edid_fw/archive/refs/heads/main.zip
